fUST/lending_fUST_20250912
["ID","MTS","AMOUNT","RATE_DAILY","PERIOD"]
[385010960,1757643517526,-480.0,0.00014082,2]
[385010961,1757643517536,-480.0,0.00014082,2]
[385010962,1757643517546,-453.28,0.00014082,2]
[385010963,1757643517554,-480.0,0.00014082,2]
[385010964,1757643517563,-106.60648942,0.00014082,2]
[385010965,1757643517578,-169.76351058,0.00014082,2]
[385010966,1757643517588,-845.59,0.00014082,2]
[385010967,1757643517597,-480.0,0.00014082,2]
[385010968,1757643517607,-480.0,0.00014082,2]
[385010969,1757643517618,-480.0,0.00014083,2]
[385010970,1757643517628,-480.0,0.00014083,2]
[385010971,1757643517636,-480.0,0.00014084,2]
[385010972,1757643517645,-480.0,0.00014084,2]
[385010973,1757643517654,-480.0,0.00014084,2]
[385010974,1757643517663,-480.0,0.00014084,2]
[385010975,1757643517672,-480.0,0.00014084,2]
[385010976,1757643517681,-480.0,0.00014084,2]
[385010977,1757643517690,-158.24404804,0.00014084,2]
[385010978,1757643517722,-321.75595196,0.00014084,2]
[385010979,1757643517752,-300.0,0.00014085,2]
[385010980,1757643517781,-300.0,0.00014085,2]
[385010981,1757643517809,-300.0,0.00014085,2]
[385010982,1757643517843,-300.0,0.00014085,2]
[385010983,1757643517877,-300.0,0.00014085,2]
[385010984,1757643517910,-300.0,0.00014085,2]
[385010985,1757643517940,-300.0,0.00014085,2]
[385010986,1757643517970,-300.0,0.00014085,2]
[385010987,1757643517998,-300.0,0.00014085,2]
[385010988,1757643518026,-300.0,0.00014085,2]
[385010989,1757643518055,-300.0,0.00014085,2]
[385010990,1757643518084,-300.0,0.00014085,2]
[385010991,1757643518112,-300.0,0.00014085,2]
[385010992,1757643518141,-300.0,0.00014085,2]
[385010993,1757643518170,-300.0,0.00014085,2]
[385010994,1757643518278,480.0,0.0001367,2]
[385010995,1757643518319,-378.82841263,0.00014108,2]
[385010996,1757643518347,-480.0,0.00014108,2]
[385010997,1757643522630,315.69586553,0.00013982,2]
[385010999,1757643531121,480.0,0.00013808,2]
[385011000,1757643532322,480.0,0.00013983,2]
[385011001,1757643532597,480.0,0.00014257,2]
[385011002,1757643534130,3789.27,0.00014212,2]
[385011003,1757643541986,3173.0,0.00014212,2]
[385011004,1757643543919,666.0,0.00014124,2]
[385011005,1757643555843,480.0,0.00013808,2]
[385011006,1757643556142,480.0,0.00014082,2]
[385011007,1757643556849,480.0,0.00013808,2]
[385011008,1757643557144,480.0,0.00014082,2]
[385011009,1757643557222,300.0,0.00014211,2]
[385011010,1757643558257,480.0,0.00013983,2]
[385011011,1757643558510,480.0,0.00014257,2]
[385011012,1757643565092,300.0,0.00014211,2]
[385011013,1757643566934,480.0,0.0001381,2]
[385011014,1757643567188,480.0,0.00014084,2]
[385011015,1757643567311,480.0,0.00013808,2]
[385011016,1757643567693,404.45528765,0.00013983,2]
[385011017,1757643567724,480.0,0.00014082,2]
[385011018,1757643569029,480.0,0.00013983,2]
[385011019,1757643569268,480.0,0.00014257,2]
[385011020,1757643572557,480.0,0.00013808,2]
[385011021,1757643572762,480.0,0.00013808,2]
[385011022,1757643573032,480.0,0.00014082,2]
[385011023,1757643574867,480.0,0.00013808,2]
[385011024,1757643575135,329.00972586,0.00014082,2]
[385011025,1757643578301,480.0,0.00013983,2]
[385011026,1757643578612,480.0,0.00014257,2]
[385011027,1757643581002,300.0,0.00014211,2]
[385011028,1757643584862,480.0,0.00013983,2]
[385011029,1757643585117,480.0,0.00014257,2]
[385011030,1757643590058,300.0,0.00014211,2]
[385011031,1757643590458,480.0,0.00013983,2]
[385011032,1757643590685,480.0,0.00014257,2]
[385011033,1757643595996,480.0,0.00013983,2]
[385011034,1757643596240,480.0,0.00014257,2]
[385011035,1757643603181,480.0,0.00013983,2]
[385011036,1757643604718,480.0,0.00013808,2]
[385011037,1757643604954,480.0,0.00014082,2]
[385011038,1757643606805,3352.41,0.00014212,2]
[385011039,1757643608693,481.9287002,0.00013808,2]
[385011040,1757643614735,1800.0,0.00014211,2]
[385011041,1757643617425,480.0,0.00013808,2]
[385011042,1757643617652,480.0,0.00014082,2]
[385011043,1757643621017,480.0,0.00013808,2]
[385011044,1757643621279,480.0,0.00014082,2]
[385011045,1757643623360,804.01,0.00013808,2]
[385011046,1757643623618,804.01,0.00014082,2]
[385011047,1757643630142,480.0,0.00013808,2]
[385011048,1757643630247,1800.0,0.00014211,2]
[385011049,1757643638091,484.4318253,0.00013808,2]
[385011050,1757643638927,1800.0,0.00014211,2]
[385011051,1757643639004,480.0,0.00013983,2]
[385011052,1757643639309,480.0,0.00014257,2]
[385011053,1757643643341,480.0,0.00013808,2]
[385011054,1757643645774,480.0,0.00013983,2]
[385011055,1757643646006,480.0,0.00014257,2]
[385011056,1757643654756,1800.0,0.00014211,2]
[385011057,1757643662682,1800.0,0.00014211,2]
[385011058,1757643667890,480.0,0.00013983,2]
[385011059,1757643668206,480.0,0.00014257,2]
[385011060,1757643668923,354.27294273,0.00013983,2]
[385011061,1757643670803,480.0,0.00013808,2]
[385011062,1757643672591,1029.22,0.00013808,2]
[385011063,1757643672852,1029.22,0.00014082,2]
[385011064,1757643674152,480.0,0.00013983,2]
[385011065,1757643677928,1800.0,0.00014211,2]
[385011066,1757643678824,480.0,0.00013983,2]
[385011067,1757643679068,480.0,0.00014257,2]
[385011068,1757643681846,480.0,0.00013808,2]
[385011069,1757643682315,480.0,0.00014082,2]
[385011070,1757643683891,480.0,0.00013983,2]
[385011071,1757643687400,1800.0,0.00014211,2]
[385011072,1757643690283,480.0,0.00013983,2]
[385011073,1757643690530,480.0,0.00014257,2]
[385011074,1757643694031,480.0,0.00013808,2]
[385011075,1757643694258,480.0,0.00014082,2]
[385011076,1757643696108,482.75774268,0.00013808,2]
[385011077,1757643696584,480.0,0.00013808,2]
[385011078,1757643703311,1800.0,0.00014211,2]
[385011079,1757643704162,480.0,0.00013983,2]
[385011080,1757643704468,480.0,0.00014257,2]
[385011081,1757643709302,480.0,0.00013983,2]
[385011082,1757643709540,480.0,0.00014257,2]
[385011083,1757643711253,1800.0,0.00014211,2]
[385011084,1757643715639,470.34886594,0.00013808,2]
[385011085,1757643718216,480.0,0.00013983,2]
[385011086,1757643718497,167.55396721,0.00014257,2]
[385011087,1757643723575,480.0,0.00013983,2]
[385011088,1757643723836,480.0,0.00014257,2]
[385011089,1757643723866,480.0,0.00013808,2]
[385011090,1757643724230,480.0,0.00014082,2]
[385011091,1757643726672,480.0,0.00013808,2]
[385011092,1757643727688,1800.0,0.00014211,2]
[385011093,1757643736279,1800.0,0.00014211,2]
[385011094,1757643741958,356.55646905,0.00013808,2]
[385011095,1757643752339,480.0,0.00013808,2]
[385011096,1757643752575,480.0,0.00014082,2]
[385011097,1757643752645,1800.0,0.00014211,2]
[385011098,1757643755169,480.0,0.00013808,2]
[385011099,1757643755438,480.0,0.00014082,2]
[385011100,1757643758376,480.0,0.00013808,2]
[385011101,1757643758442,480.0,0.00013983,2]
[385011102,1757643758620,490.90454738,0.00014082,2]
[385011103,1757643758695,480.0,0.00014257,2]
[385011104,1757643760629,1800.0,0.00014211,2]
[385011105,1757643760755,480.0,0.00013808,2]
[385011106,1757643760994,480.0,0.00014082,2]
[385011107,1757643771980,480.0,0.00013808,2]
[385011108,1757643772282,480.0,0.00014082,2]
[385011109,1757643772326,480.0,0.00013983,2]
[385011110,1757643773664,453.28,0.00013983,2]
[385011111,1757643776474,1800.0,0.00014211,2]
[385011112,1757643777415,179.801294,0.00013681,2]
[385011113,1757643777818,179.801294,0.00013681,120]
[385011114,1757643784639,1500.0,0.00014211,2]
[385011116,1757643791703,480.0,0.00013808,2]
[385011117,1757643791985,480.0,0.00014082,2]
[385011118,1757643792341,480.0,0.00013808,2]
[385011119,1757643792622,487.67,0.00014082,2]
[385011120,1757643799944,480.0,0.00013983,2]
[385011121,1757643800178,480.0,0.00014257,2]
[385011122,1757643800593,1800.0,0.00014211,2]
[385011123,1757643806713,480.0,0.00013983,2]
[385011124,1757643806963,480.0,0.00014257,2]
[385011125,1757643808470,1800.0,0.00014211,2]
[385011126,1757643811366,480.0,0.00013983,2]
[385011127,1757643811833,589.73853827,0.00014257,2]
[385011128,1757643818785,480.0,0.00013983,2]
[385011129,1757643819049,480.0,0.00014257,2]
[385011130,1757643821985,480.0,0.00013983,2]
[385011131,1757643823926,1800.0,0.00014211,2]
[385011132,1757643832302,1800.0,0.00014211,2]
[385011133,1757643835708,480.0,0.00013983,2]
[385011134,1757643835945,480.0,0.00014257,2]
[385011135,1757643839028,485.67044077,0.00013983,2]
[385011136,1757643840865,480.0,0.00013808,2]
[385011137,1757643841122,480.0,0.00014082,2]
[385011138,1757643847805,1800.0,0.00014211,2]
[385011139,1757643850110,5794.33955923,0.00013598,2]
[385011140,1757643850149,10000.01,0.00013598,2]
[385011141,1757643850173,10000.01,0.00013598,2]
[385011142,1757643850197,10000.01,0.00013598,2]
[385011143,1757643850224,9612.56088857,0.00013598,2]
[385011144,1757643852266,302.09583874,0.00013983,2]
[385011145,1757643855682,1800.0,0.00014211,2]
[385011146,1757643856449,480.0,0.00013983,2]
[385011147,1757643856706,480.0,0.00014257,2]
[385011148,1757643858261,480.0,0.00013983,2]
[385011149,1757643871130,1800.0,0.00014211,2]
[385011150,1757643876826,480.0,0.00013983,2]
[385011151,1757643879645,1800.0,0.00014211,2]
[385011152,1757643884982,480.0,0.00013808,2]
[385011153,1757643885221,480.0,0.00014082,2]
[385011154,1757643889078,480.0,0.00013983,2]
[385011155,1757643895403,1800.0,0.00014211,2]
[385011156,1757643900339,480.0,0.00013983,2]
[385011157,1757643904045,1200.0,0.00014211,2]
[385011158,1757643904963,313.15434882,0.00013983,2]
[385011159,1757643907618,737.01,0.00013808,2]
[385011160,1757643907885,737.01,0.00014082,2]
[385011176,1757643913359,480.0,0.00013983,2]
[385011180,1757643920734,1800.0,0.00014211,2]
[385011181,1757643921465,1650.54,0.00012329,2]
[385011186,1757643926238,943.45,0.00013983,2]
[385011187,1757643926478,943.45,0.00014257,2]
[385011188,1757643928543,1800.0,0.00014211,2]
[385011190,1757643931801,480.0,0.00013983,2]
[385011191,1757643932064,277.98,0.00014257,2]
[385011192,1757643932126,1375.45,0.00012329,2]
[385011196,1757643934033,484.97776006,0.00013983,2]
[385011205,1757643942611,1146.21,0.00012329,2]
[385011206,1757643943737,1800.0,0.00014211,2]
[385011208,1757643946009,500.0,0.00013983,2]
[385011209,1757643946075,480.0,0.00013983,2]
[385011210,1757643946353,473.87,0.00014257,2]
[385011212,1757643948384,499.29,0.00013983,2]
[385011213,1757643949218,480.0,0.00013983,2]
[385011214,1757643949460,480.0,0.00014257,2]
[385011216,1757643952306,1800.0,0.00014211,2]
[385011217,1757643953026,955.17,0.00012329,2]
[385011219,1757643953331,484.46095368,0.00013983,2]
[385011220,1757643955390,484.61797413,0.00013983,2]
[385011222,1757643958029,484.95016034,0.00013983,2]
[385011225,1757643962136,480.0,0.00013808,2]
[385011226,1757643962415,528.97,0.00014082,2]
[385011227,1757643962468,387.482761,0.00013699,2]
[385011228,1757643963445,955.17,0.00012329,2]
[385011231,1757643968811,1800.0,0.00014211,2]
[385011233,1757643973873,636.78,0.00012329,2]
[385011236,1757643977273,1800.0,0.00014211,2]
[385011239,1757643984489,530.65,0.00012329,2]
[385011245,1757643987214,569.01380312,0.00013983,2]
[385011246,1757643989062,480.0,0.00013983,2]
[385011248,1757643990537,480.0,0.00013983,2]
[385011249,1757643990894,480.0,0.00014257,2]
[385011250,1757643993175,1800.0,0.00014211,2]
[385011254,1757643996196,480.0,0.00013808,2]
[385011258,1757644001113,859.5720266,0.00014211,2]
[385011260,1757644005778,442.21,0.00012329,2]
[385011262,1757644007035,484.0476538,0.00013983,2]
[385011267,1757644015329,480.0,0.00013983,2]
[385011268,1757644016197,368.51,0.00012329,2]
[385011269,1757644016725,480.0,0.00013983,2]
[385011271,1757644017284,1800.0,0.00014211,2]
[385011275,1757644023702,480.0,0.00013983,2]
[385011278,1757644026872,307.09,0.00012329,2]
[385011284,1757644029615,297.34,0.00013808,2]
[385011289,1757644037536,255.91,0.00012329,2]
[385011292,1757644040131,487.67661851,0.00013983,2]
[385011293,1757644040622,2240.0,0.00014211,2]
[385011297,1757644044601,480.0,0.00013983,2]
[385011298,1757644044860,546.05,0.00014257,2]
[385011301,1757644047629,480.0,0.00013983,2]
[385011302,1757644047877,480.0,0.00014257,2]
[385011303,1757644047965,213.26,0.00012329,2]
[385011305,1757644051462,480.0,0.00013983,2]
[385011306,1757644051724,480.0,0.00014257,2]
[385011310,1757644058369,177.71,0.00012329,2]
[385011313,1757644060379,155.6340228,0.00013983,2]
[385011315,1757644064261,480.0,0.00013983,2]
[385011316,1757644064499,480.0,0.00014257,2]
[385011317,1757644065995,2240.0,0.00014211,2]
[385011320,1757644066719,480.0,0.00013983,2]
[385011321,1757644068817,888.59,0.00012329,2]
[385011326,1757644076514,480.0,0.00013808,2]
[385011327,1757644076760,480.0,0.00014082,2]
[385011328,1757644076960,1748.0,0.00028416,60]
[385011330,1757644081118,480.0,0.00013983,2]
[385011331,1757644081404,480.0,0.00014257,2]
[385011335,1757644088125,152.49321819,0.00014255,2]
[385011336,1757644090418,2240.0,0.00014211,2]
[385011339,1757644094063,480.0,0.0001381,2]
[385011341,1757644094300,422.84782814,0.00014084,2]
[385011342,1757644095138,418.23482123,0.00010618,2]
[385011343,1757644097035,8678.92735063,0.000125,2]
[385011344,1757644097056,2788.68491958,0.000125,2]
[385011353,1757644110189,284.80389159,0.0001,2]
[385011356,1757644114836,2240.0,0.00014211,2]
[385011358,1757644115874,973.19,0.00013983,2]
[385011359,1757644116127,973.19,0.00014257,2]
[385011360,1757644116751,305.150873,0.00013924,2]
[385011361,1757644117023,480.0,0.00013983,2]
[385011362,1757644117139,427.348813,0.00013925,2]
[385011363,1757644117263,242.7432411,0.00024,60]
[385011364,1757644117476,301.29902408,0.00014095,2]
[385011365,1757644117790,4015.02739833,0.00013,2]
[385011366,1757644117813,10000.01,0.00013,2]
[385011367,1757644117835,10000.01,0.00013,2]
[385011368,1757644117856,10000.01,0.00013,2]
[385011369,1757644117878,10000.01,0.00013,2]
[385011371,1757644117901,5772.33322059,0.00013,2]
[385011373,1757644119818,1000.0,0.0001,2]
[385011375,1757644122601,509.21,0.00013983,2]
[385011377,1757644122785,238.22399658,0.00028416,60]
[385011378,1757644122986,152.02408464,0.00025,120]
[385011381,1757644125032,9490.8,0.0001,2]
[385011382,1757644125057,8196.99585276,0.0001,2]
[385011383,1757644126342,10000.01,0.0001,2]
[385011384,1757644126363,10000.01,0.0001,2]
[385011385,1757644126385,10000.01,0.0001,2]
[385011386,1757644126408,1541.52806844,0.0001,2]
[385011390,1757644130986,3651.5684573,0.00014019,2]
[385011393,1757644132448,480.0,0.00013983,2]
[385011395,1757644137560,2240.0,0.00014211,2]
[385011400,1757644147223,977.07,0.00013983,2]
[385011401,1757644147479,977.07,0.00014257,2]
[385011419,1757644161541,2240.0,0.00014211,2]
[385011420,1757644166992,597.41,0.00013983,2]
[385011421,1757644170383,624.59,0.00013983,2]
[385011422,1757644185268,1863.87,0.00014211,2]
[385011423,1757644185292,376.13,0.00014211,2]
[385011424,1757644208964,2240.0,0.00014211,2]
[385011491,1757644232303,-440.0,0.00014355,2]
[385011493,1757644232312,-27.24433419,0.00014355,2]
[385011536,1757644232701,680.14225445,0.00014211,2]
[385011842,1757644235942,552.62,0.00013983,2]
[385011857,1757644236070,1000.0,0.00013598,2]
[385011876,1757644236249,552.62,0.00014257,2]
[385012076,1757644238183,-272.75566581,0.00014355,2]
[385012078,1757644238193,-206.05441353,0.00014355,2]
[385012079,1757644238238,-993.94558647,0.00014355,2]
[385012080,1757644238247,-300.0,0.00014355,2]
[385012081,1757644238256,-480.0,0.00014356,2]
[385012082,1757644238265,-480.0,0.00014356,2]
[385012083,1757644238274,-480.0,0.00014356,2]
[385012099,1757644238409,-480.0,0.00014356,2]
[385012101,1757644238427,-480.0,0.00014356,2]
[385012103,1757644238437,-480.0,0.00014358,2]
[385012105,1757644238446,-600.0,0.00014366,2]
[385012107,1757644238455,-480.0,0.00014531,2]
[385012109,1757644238464,-480.0,0.00014531,2]
[385012111,1757644238474,-480.0,0.00014531,2]
[385012113,1757644238483,-480.0,0.00014531,2]
[385012115,1757644238493,-973.19,0.00014531,2]
[385012117,1757644238509,-977.07,0.00014531,2]
[385012119,1757644238520,-552.62,0.00014531,2]
[385012121,1757644238529,-276.23388233,0.00014565,2]
[385012123,1757644238539,-480.0,0.00014629,2]
[385012125,1757644238548,-480.0,0.00014629,2]
[385012127,1757644238557,-480.0,0.00014629,2]
[385012129,1757644238566,-480.0,0.00014629,2]
[385012131,1757644238576,-480.0,0.00014629,2]
[385012133,1757644238584,-480.0,0.00014629,2]
[385012135,1757644238593,-480.0,0.00014629,2]
[385012137,1757644238602,-480.0,0.00014629,2]
[385012139,1757644238611,-480.0,0.00014629,2]
[385012141,1757644238621,-480.0,0.0001463,2]
[385012143,1757644238629,-480.0,0.0001463,2]
[385012145,1757644238639,-480.0,0.0001463,2]
[385012147,1757644238648,-480.0,0.0001463,2]
[385012149,1757644238661,-480.0,0.0001463,2]
[385012151,1757644238670,-480.0,0.0001464,2]
[385012153,1757644238679,-480.0,0.0001464,2]
[385012155,1757644238688,-480.0,0.0001464,2]
[385012157,1757644238698,-480.0,0.00014641,2]
[385012159,1757644238707,-480.0,0.00014641,2]
[385012161,1757644238716,-480.0,0.00014641,2]
[385012163,1757644238726,-480.0,0.00014641,2]
[385012165,1757644238736,-480.0,0.00014641,2]
[385012167,1757644238745,-480.0,0.00014641,2]
[385012169,1757644238755,-480.0,0.00014641,2]
[385012171,1757644238765,-480.0,0.00014641,2]
[385012173,1757644238774,-480.0,0.00014641,2]
[385012175,1757644238783,-480.0,0.00014641,2]
[385012177,1757644238792,-300.0,0.00014642,2]
[385012179,1757644238801,-300.0,0.00014642,2]
[385012181,1757644238810,-300.0,0.00014642,2]
[385012182,1757644238820,-300.0,0.00014642,2]
[385012184,1757644238829,-300.0,0.00014642,2]
[385012186,1757644238838,-300.0,0.00014642,2]
[385012188,1757644238847,-300.0,0.00014642,2]
[385012190,1757644238856,-300.0,0.00014642,2]
[385012192,1757644238865,-300.0,0.00014642,2]
[385012194,1757644238874,-300.0,0.00014642,2]
[385012196,1757644238884,-300.0,0.00014642,2]
[385012198,1757644238892,-300.0,0.00014642,2]
[385012200,1757644238902,-300.0,0.00014642,2]
[385012202,1757644238911,-300.0,0.00014642,2]
[385012203,1757644238920,-300.0,0.00014642,2]
[385012204,1757644238929,-712.15777175,0.00014665,2]
[385012205,1757644238938,-233.61879905,0.00014672,2]
[385012206,1757644238947,-12097.77010815,0.00014673,2]
[385012207,1757644238956,-230.14212195,0.00014729,2]
[385012208,1757644238965,-224.10453549,0.00014729,2]
[385012209,1757644238974,-17342.64626481,0.0001473,2]
[385012210,1757644238991,-352657.35373519,0.0001473,2]
[385012211,1757644239000,-500.0,0.00014773,2]
[385012212,1757644239009,-500.0,0.00014773,2]
[385012213,1757644239019,-230.61699509,0.00014799,2]
[385012214,1757644239028,-480.0,0.00014805,2]
[385012215,1757644239037,-480.0,0.00014805,2]
[385012216,1757644239047,-168.82,0.00014805,2]
[385012217,1757644239056,-973.19,0.00014805,2]
[385012218,1757644239065,-977.07,0.00014805,2]
[385012219,1757644239074,-552.62,0.00014805,2]
[385012220,1757644239084,-480.0,0.00014903,2]
[385012221,1757644239093,-164.92,0.00014903,2]
[385012222,1757644239102,-480.0,0.00014903,2]
[385012223,1757644239112,-499.29,0.00014903,2]
[385012224,1757644239121,-296.00219998,0.00014904,2]
[385012225,1757644239130,-480.0,0.00014904,2]
[385012226,1757644239139,-480.0,0.00014904,2]
[385012227,1757644239148,-557.35,0.00014904,2]
[385012228,1757644239158,-437.15,0.00014914,2]
[385012229,1757644239167,-480.0,0.00014914,2]
[385012230,1757644239176,-480.0,0.00014914,2]
[385012231,1757644239185,-480.0,0.00014915,2]
[385012232,1757644239194,-480.0,0.00014915,2]
[385012233,1757644239203,-480.0,0.00014915,2]
[385012234,1757644239214,-480.0,0.00014915,2]
[385012235,1757644239222,-552.79066812,0.00014915,2]
[385012236,1757644239231,-200.632937,0.00015068,2]
[385012237,1757644239241,-505.11654427,0.00015068,2]
[385012238,1757644239250,-480.0,0.00015079,2]
[385012239,1757644239259,-480.0,0.00015079,2]
[385012240,1757644239268,-973.19,0.00015079,2]
[385012241,1757644239277,-977.07,0.00015079,2]
[385012242,1757644239286,-552.62,0.00015079,2]
[385012243,1757644239295,-480.0,0.00015177,2]
[385012244,1757644239304,-480.0,0.00015177,2]
[385012245,1757644239313,-480.0,0.00015178,2]
[385012246,1757644239322,-480.0,0.00015178,2]
[385012247,1757644239331,-480.0,0.00015188,2]
[385012248,1757644239339,-480.0,0.00015188,2]
[385012249,1757644239349,-480.0,0.00015189,2]
[385012250,1757644239358,-480.0,0.00015189,2]
[385012251,1757644239367,-847.0429734,0.00015208,2]
[385012252,1757644239376,-233.13074058,0.00015208,2]
[385012253,1757644239386,-160.0,0.00015208,2]
[385012254,1757644239396,-217.7145751,0.00015208,2]
[385012255,1757644239405,-160.0,0.00015227,2]
[385012256,1757644239414,-160.0,0.00015239,2]
[385012257,1757644239424,-1000.0,0.00015321,2]
[385012258,1757644239433,-1000.0,0.00015321,2]
[385012259,1757644239442,-395.90907213,0.00015353,2]
[385012260,1757644239452,-480.0,0.00015353,2]
[385012261,1757644239461,-973.19,0.00015353,2]
[385012262,1757644239471,-977.07,0.00015353,2]
[385012263,1757644239481,-552.62,0.00015353,2]
[385012264,1757644239491,-480.0,0.00015451,2]
[385012265,1757644239500,-536.24,0.00015451,2]
[385012266,1757644239510,-308.1,0.00015452,2]
[385012267,1757644239519,-480.0,0.00015452,2]
[385012268,1757644239529,-539.8,0.00015462,2]
[385012269,1757644239538,-480.0,0.00015462,2]
[385012270,1757644239549,-578.44950272,0.00015463,2]
[385012271,1757644239558,-219.91,0.00015627,2]
[385012272,1757644239568,-973.19,0.00015627,2]
[385012273,1757644239577,-977.07,0.00015627,2]
[385012274,1757644239587,-552.62,0.00015627,2]
[385012275,1757644239596,-420.0,0.00015721,2]
[385012276,1757644239606,-480.0,0.00015725,2]
[385012277,1757644239615,-480.0,0.00015726,2]
[385012278,1757644239625,-480.0,0.00015736,2]
[385012279,1757644239634,-1000.0,0.00015791,2]
[385012280,1757644239643,-720.0,0.00015802,2]
[385012281,1757644239653,-1500.0,0.00015868,2]
[385012282,1757644239666,-973.19,0.00015901,2]
[385012283,1757644239675,-977.07,0.00015901,2]
[385012284,1757644239684,-552.62,0.00015901,2]
[385012285,1757644239693,-480.0,0.00016,2]
[385012286,1757644239704,-480.0,0.0001601,2]
[385012287,1757644239714,-973.19,0.00016175,2]
[385012288,1757644239724,-977.07,0.00016175,2]
[385012289,1757644239734,-552.62,0.00016175,2]
[385012290,1757644239743,-480.0,0.00016284,2]
[385012291,1757644239752,-2000.0,0.00016416,2]
[385012292,1757644239762,-500.0,0.00016438,2]
[385012293,1757644239771,-500.0,0.00016438,2]
[385012294,1757644239780,-500.0,0.00016438,2]
[385012295,1757644239791,-500.0,0.00016438,2]
[385012296,1757644239801,-500.0,0.00016438,2]
[385012297,1757644239811,-500.0,0.00016438,2]
[385012298,1757644239822,-500.0,0.00016438,2]
[385012299,1757644239833,-500.0,0.00016438,2]
[385012300,1757644239843,-500.0,0.00016438,2]
[385012301,1757644239854,-973.19,0.00016449,2]
[385012302,1757644239864,-977.07,0.00016449,2]
[385012303,1757644239874,-500.0,0.00016449,2]
[385012304,1757644239884,-552.62,0.00016449,2]
[385012305,1757644239895,-3247.33170582,0.000165,2]
[385012306,1757644239904,-276.23388229,0.00016529,2]
[385012308,1757644239914,-480.0,0.00016558,2]
[385012310,1757644239923,-712.15777171,0.00016674,2]
[385012312,1757644239933,-973.19,0.00016723,2]
[385012314,1757644239943,-977.07,0.00016723,2]
[385012316,1757644239953,-500.0,0.00016723,2]
[385012318,1757644239964,-367.27,0.00016832,2]
[385012319,1757644239974,-814.7750546,0.0001689,2]
[385012320,1757644239984,-2500.0,0.00016964,2]
[385012321,1757644239995,-973.19,0.00016997,2]
[385012323,1757644240005,-977.07,0.00016997,2]
[385012325,1757644240016,-385.36645239,0.00016997,2]
[385012327,1757644240025,-587.0,0.00017217,2]
[385012329,1757644240035,-973.19,0.00017271,2]
[385012331,1757644240045,-977.07,0.00017271,2]
[385012333,1757644240054,-339.44485625,0.00017311,2]
[385012335,1757644240064,-864.0,0.00017382,2]
[385012337,1757644240074,-3000.0,0.00017512,2]
[385012339,1757644240084,-181.8008884,0.00017531,2]
[385012341,1757644240094,-973.19,0.00017545,2]